bitfinex-derivatives/quotes_ETHF0:USTF0_20250627
["timestamp","ask_amount","ask_price","bid_price","bid_amount"]
[1751043889320,8.38263792,2426.2,2426.1,33.25208]
[1751043889321,7.55858792,2426.2,2426.1,33.25208]
[1751043889818,6.19678792,2426.2,2426.1,33.25208]
[1751043890514,7.02083792,2426.2,2426.1,32.428]
[1751043890821,7.02083792,2426.2,2426.1,33.26108]
[1751043891015,6.19678792,2426.2,2426.1,33.26108]
[1751043891213,6.19678792,2426.2,2426.1,32.437]
[1751043891513,6.19678792,2426.2,2426.1,33.26108]
[1751043892115,6.19678792,2426.2,2426.1,40.57042914]
[1751043892917,6.19678792,2426.2,2426.1,40.56242914]
[1751043893114,6.19678792,2426.2,2426.1,43.77022914]
[1751043893313,4.9973,2426.2,2426.1,43.77022914]
[1751043893514,4.9973,2426.2,2426.1,45.10482914]
[1751043895521,4.1347,2426.6,2426.4,0.82397]
[1751043895725,4.1347,2426.6,2426.5,33.24795]
[1751043895913,5.33413839,2426.6,2426.5,32.424]
[1751043896122,6.20514839,2426.6,2426.5,32.424]
[1751043896716,0.82424,2425.7,2425.1,5.71148182]
[1751043896916,2.64896,2425.6,2425.0,8.0169]
[1751043897122,1.8247,2425.6,2425.1,27.16541]
[1751043897319,0.8243,2425.5,2425.2,0.82437]
[1751043897524,0.8243,2425.5,2425.3,26.338]
[1751043897727,0.8243,2425.5,2425.4,7.158]
[1751043897921,1.75117,2425.6,2425.4,7.158]
[1751043898122,1.75116,2425.6,2425.5,33.495]
[1751043898420,2.12562371,2425.6,2425.2,7.30934914]
[1751043898614,4.03212,2425.4,2425.3,33.495]
[1751043899919,3.2078,2425.4,2425.3,33.52]
[1751043900122,4.03212,2425.4,2425.3,33.52]
[1751043900432,7.18262,2425.4,2425.3,33.52]
[1751043901532,7.18262,2425.4,2425.3,26.352]
[1751043901924,8.62512,2425.4,2425.3,26.352]
[1751043902225,7.18262,2425.4,2425.3,26.352]
[1751043902429,6.3583,2425.4,2425.3,26.352]
[1751043902631,7.18262,2425.4,2425.3,26.352]
[1751043902932,6.3583,2425.4,2425.3,26.352]
[1751043903229,11.3583,2425.4,2425.0,43.517]
[1751043903531,4.03222,2425.1,2425.0,43.517]
[1751043903732,4.03222,2425.1,2425.0,77.005]
[1751043903933,0.82452,2424.9,2424.8,7.159]
[1751043904138,0.82452,2424.9,2424.8,33.521]
[1751043904537,2.26702,2424.9,2424.8,33.521]
[1751043905138,1.4425,2424.9,2424.8,33.521]
[1751043905337,0.9337,2425.0,2424.8,34.3455]
[1751043905542,0.9337,2425.0,2424.9,0.82449]
[1751043905846,1.75818,2425.0,2424.9,33.525]
[1751043906044,5.931,2425.0,2424.9,34.34949]
[1751043908137,3.2078,2425.1,2425.0,0.82446]
[1751043908444,3.2078,2425.1,2424.9,33.525]
[1751043908445,0.9044,2425.3,2425.2,0.82439]
[1751043908742,0.9044,2425.3,2425.2,27.16939]
[1751043908942,5.9017,2425.3,2425.2,27.16939]
[1751043909944,4.9973,2425.3,2425.2,27.16939]
[1751043910342,4.9973,2425.3,2425.2,28.51869]
[1751043911242,4.9973,2425.3,2425.2,27.16939]
[1751043912741,4.9973,2425.3,2425.2,34.28539]
[1751043913547,4.9973,2425.3,2425.2,35.69949]
[1751043914642,4.04814,2425.3,2425.2,84.23249]
[1751043914942,3.2078,2425.8,2425.7,0.82422]
[1751043915142,3.2439,2425.8,2425.7,75.05922]
[1751043915446,3.2439,2425.8,2425.7,34.25922]
[1751043915846,3.2439,2425.8,2425.7,75.05922]
[1751043916449,0.0361,2425.8,2425.7,75.05922]
[1751043917144,0.0361,2425.8,2425.7,82.36856914]
[1751043917540,3.2221,2426.1,2426.0,0.82412]
[1751043917743,3.2221,2426.1,2426.0,27.08612]
[1751043920246,3.2078,2426.1,2426.0,27.08612]
[1751043921354,3.2078,2426.1,2426.0,34.20812]
[1751043926165,3.2078,2426.1,2426.0,34.52990188]
[1751043926553,3.2078,2426.1,2426.0,34.20812]
[1751043928358,3.2078,2426.1,2426.0,38.01267779]
[1751043932255,3.2078,2426.1,2426.0,0.82412]
[1751043932459,7.87645779,2426.1,2426.0,33.98012]
[1751043932660,10.03363779,2426.1,2426.0,7.075]
[1751043932953,10.03363779,2426.1,2425.4,5.86534779]
[1751043932954,0.82422,2425.7,2425.4,0.8259]
[1751043933152,10.03382779,2425.6,2425.5,7.074]
[1751043933351,9.20955779,2425.6,2425.5,33.161]
[1751043933552,5.82249,2425.5,2425.3,0.82433]
[1751043933752,1.3331,2425.4,2425.3,0.82433]
[1751043933952,1.3331,2425.4,2425.3,33.98033]
[1751043934154,1.3331,2425.4,2425.3,33.156]
[1751043934351,1.3331,2425.4,2425.3,33.98035]
[1751043934763,1.3331,2425.4,2425.3,0.82435]
[1751043934956,1.3331,2425.4,2425.2,85.15736]
[1751043935262,2.15742,2425.4,2425.3,33.143]
[1751043935564,5.36522,2425.4,2425.3,33.141]
[1751043936259,5.36522,2425.4,2425.3,33.96535]
[1751043936464,4.5409,2425.4,2425.3,33.96435]
[1751043936650,5.36522,2425.4,2425.3,33.14]
[1751043936962,5.36522,2425.4,2425.3,33.13]
[1751043936963,5.36524,2425.4,2425.3,33.13]
[1751043937364,16.85205712,2425.4,2424.7,2.0614]
[1751043937561,3.2078,2425.1,2424.9,0.82448]
[1751043937864,2.3075,2425.0,2424.9,0.82448]
[1751043938163,0.82453,2424.8,2424.7,0.82455]
[1751043938463,9.03053,2424.8,2424.7,33.94955]
[1751043938656,9.03053,2424.8,2424.7,33.125]
[1751043938862,9.558,2424.8,2424.7,7.89956]
[1751043939063,10.38252,2424.8,2424.6,0.82458]
[1751043939257,16.86915712,2424.8,2424.0,2.06192]
[1751043939459,3.2078,2424.4,2424.3,0.82468]
[1751043939656,4.03246,2424.4,2424.3,26.044]
[1751043939857,3.2078,2424.4,2424.3,26.86869]
[1751043940060,8.2078,2424.4,2424.1,0.82474]
[1751043940264,0.82477,2424.1,2423.9,26.87081]
[1751043940466,4.5598,2424.0,2423.9,0.82483]
[1751043940661,5.4004,2424.0,2423.8,0.29596852]
[1751043940861,11.22521,2424.0,2423.8,0.29596852]
[1751043941064,8.13598712,2423.9,2423.8,0.29596852]
[1751043941264,1.352,2423.9,2423.2,7.076]
[1751043941463,3.2078,2423.8,2423.4,26.044]
[1751043941869,1.0102,2423.6,2423.5,0.82497]
[1751043942164,8.32135712,2423.6,2422.6,46.7368]
[1751043942367,3.2078,2423.2,2422.6,3.2078]
[1751043942567,3.2078,2422.9,2422.8,0.8252]
[1751043942865,7.078,2423.8,2422.8,0.8252]
[1751043942866,3.2078,2423.2,2423.1,0.8251]
[1751043943071,3.2078,2423.2,2423.1,34.0071]
[1751043943262,0.2358,2423.2,2423.1,41.31825712]
[1751043943560,0.2358,2423.2,2423.1,44.52605712]
[1751043943561,1e-05,2423.2,2423.1,44.52605712]
[1751043943767,7.9702,2423.7,2423.6,0.82493]
[1751043943969,7.9702,2423.7,2423.6,34.02293]
[1751043945763,4.7624,2423.7,2423.6,34.02293]
[1751043946064,3.2078,2424.0,2423.6,34.02293]
[1751043946366,7.9702,2424.0,2423.9,0.82483]
[1751043947072,2.50549,2424.0,2423.9,5.82483]
[1751043947268,3.2078,2424.7,2424.6,0.82459]
[1751043947471,3.2078,2424.7,2424.6,34.00959]
[1751043951474,3.2078,2424.7,2424.6,33.185]
[1751043951672,3.2078,2424.7,2424.6,33.143]
[1751043952172,11.34352712,2424.7,2424.6,33.143]
[1751043952571,15.51895712,2424.7,2424.5,26.058]
[1751043952770,2.47859,2424.6,2424.5,26.058]
[1751043952977,3.85439,2424.6,2424.5,26.058]
[1751043953278,8.85439,2424.6,2424.5,26.058]
[1751043955173,0.82463,2424.5,2424.0,0.8216]
[1751043955372,0.82463,2424.5,2424.3,7.90367]
[1751043955573,0.82463,2424.5,2424.4,26.035]
[1751043955880,4.03243,2424.5,2424.4,26.85966]
[1751043956077,2.06166,2424.4,2423.8,43.546]
[1751043956380,0.8248,2424.0,2423.9,7.079]
[1751043956580,4.0326,2424.0,2423.9,7.079]
[1751043957276,3.2078,2424.0,2423.9,7.079]
[1751043957477,4.0326,2424.0,2423.9,7.079]
[1751043957675,4.8827,2424.0,2423.9,7.079]
[1751043958175,6.6632,2424.0,2423.9,7.90383]
[1751043959276,6.6632,2424.0,2423.9,7.079]
[1751043959878,6.6632,2424.0,2423.8,43.546]
[1751043959879,0.82483,2423.9,2423.8,43.546]
[1751043960067,0.82483,2423.9,2423.8,76.576]
[1751043960271,5.8384,2424.0,2423.8,43.546]
[1751043960479,4.8827,2424.0,2423.9,33.014]
[1751043960782,6.6596,2424.0,2423.9,33.014]
[1751043962171,0.82483,2423.9,2423.8,43.546]
[1751043962373,0.82483,2423.9,2423.8,76.562]
[1751043962686,7.06215,2423.9,2423.6,7.004]
[1751043962982,4.0327,2423.7,2423.6,7.004]
[1751043963580,5.27006,2423.7,2423.2,0.7093]
[1751043963783,3.2078,2423.4,2423.2,0.7093]
[1751043963982,0.82503,2423.3,2423.2,0.7093]
[1751043964282,0.82503,2423.3,2423.2,7.004]
[1751043964481,0.82503,2423.3,2423.2,33.007]
[1751043964870,5.81743,2423.3,2423.2,33.007]
[1751043965182,5.81743,2423.3,2423.2,33.079]
[1751043965578,5.81743,2423.3,2423.2,7.004]
[1751043965775,5.81743,2423.3,2423.2,33.072]
[1751043965976,4.9924,2423.3,2422.9,43.556]
[1751043966177,4.03294,2423.0,2422.9,43.556]
[1751043966481,3.2078,2423.0,2422.9,77.44317]
[1751043966683,4.03294,2423.0,2422.9,76.618]
[1751043967077,3.2078,2423.0,2422.9,77.44317]
[1751043967280,4.9924,2423.3,2423.0,0.8251]
[1751043967483,0.82506,2423.3,2423.1,26.8831]
[1751043967678,3.2078,2423.4,2423.1,26.058]
[1751043967879,3.2078,2423.4,2423.3,0.82503]
[1751043968083,3.2078,2423.4,2423.3,33.87303]
[1751043968388,3.2078,2423.7,2423.6,0.82491]
[1751043968581,3.2078,2423.7,2423.6,26.88191]
[1751043968780,3.2078,2424.0,2423.8,0.82485]
[1751043968981,4.0326,2424.0,2423.9,33.056]
[1751043969484,6.714,2424.0,2423.9,33.056]
[1751043970384,5.8892,2424.0,2423.9,33.056]
[1751043970584,6.714,2424.0,2423.9,33.056]
[1751043970786,7.96715546,2424.0,2423.9,33.056]
[1751043970987,7.14235546,2424.0,2423.9,33.056]
[1751043971184,7.14235546,2424.0,2423.9,33.88083]
[1751043971681,7.14235546,2424.0,2423.9,35.23163]
[1751043972081,4.46095546,2424.0,2423.9,35.23163]
[1751043972481,1.25315546,2424.0,2423.9,35.23163]
[1751043973677,1.25315546,2424.0,2423.9,35.93403]
[1751043975382,1.25315546,2424.0,2423.9,40.93403]
[1751043975586,4.9924,2424.1,2424.0,0.8248]
[1751043975890,3.2078,2424.6,2424.5,0.82462]
[1751043976190,3.2078,2424.6,2424.5,33.82762]
[1751043977684,3.2078,2424.6,2424.5,35.97172]
[1751043978588,4.9924,2424.8,2424.7,0.82456]
[1751043978890,5.65056268,2424.9,2424.8,0.82452]
[1751043979478,2.06134,2424.8,2424.3,25.973]
[1751043979791,13.79171399,2424.4,2424.3,25.973]
[1751043981089,11.34361712,2424.4,2424.3,25.973]
[1751043981394,5.65650245,2424.4,2424.3,26.79769]
[1751043981693,6.48116245,2424.4,2424.3,25.973]
[1751043981894,4.03246,2424.4,2424.3,26.79769]
[1751043982081,4.03246,2424.4,2424.3,25.973]
[1751043982490,4.03246,2424.4,2424.2,0.82473]
[1751043982491,4.03249,2424.4,2424.2,0.82473]
[1751043982690,4.03249,2424.4,2424.3,33.014]
[1751043982892,11.34364712,2424.4,2424.3,33.005]
[1751043983185,0.8247,2424.3,2424.2,0.82473]
[1751043983386,16.33603712,2424.4,2424.3,0.82469]
[1751043983595,10.51895712,2424.4,2424.3,0.82469]
[1751043983895,11.34361712,2424.4,2424.3,33.82569]
[1751043984088,16.33603712,2424.4,2424.3,7.82869]
[1751043984288,0.8247,2424.3,2424.2,26.81171]
[1751043984481,0.8247,2424.3,2424.2,33.81571]
[1751043984886,0.8247,2424.3,2424.2,33.80971]
[1751043985087,8.2002,2424.4,2423.9,1.3568]
[1751043985286,8.2002,2424.4,2424.0,32.982]
[1751043985287,0.7087,2424.3,2424.0,32.982]
[1751043985487,0.82477,2424.1,2424.0,0.82479]
[1751043985789,4.03256,2424.1,2424.0,7.004]
[1751043987496,0.8249,2423.7,2423.6,1.53323]
[1751043987793,4.0327,2423.7,2423.6,34.49823]
[1751043988193,4.0327,2423.7,2423.6,8.53723]
[1751043988394,4.0327,2423.7,2423.6,34.49923]
[1751043988693,4.0327,2423.7,2423.5,50.516]
[1751043988694,0.82493,2423.6,2423.5,50.516]
[1751043988893,9.51418712,2423.6,2423.5,50.516]
[1751043989093,14.50658712,2423.6,2423.5,6.959]
[1751043992492,15.74401712,2423.6,2423.3,6.959]
[1751043992686,3.2078,2423.4,2423.2,0.82506]
[1751043992895,3.2078,2423.4,2423.1,7.78408]
[1751043992896,0.82507,2423.2,2423.1,7.78408]
[1751043993095,0.82507,2423.2,2423.1,6.959]
[1751043993600,0.82507,2423.2,2423.1,7.7841]
[1751043994203,8.13622712,2423.2,2423.1,6.959]
[1751043994497,9.47142712,2423.2,2423.1,6.959]
[1751043994797,14.46382712,2423.2,2423.1,6.959]
[1751043995697,13.63875712,2423.2,2423.1,7.7841]
[1751043997003,14.46382712,2423.2,2423.1,6.959]
[1751043997301,14.46382712,2423.2,2423.1,7.7841]
[1751043997509,14.46382712,2423.2,2423.1,6.959]
[1751043997712,14.46382712,2423.2,2423.1,7.7841]
[1751043998112,14.46382712,2423.2,2423.1,6.959]
[1751043998309,14.46382712,2423.2,2423.1,7.7841]
[1751043999006,13.63875712,2423.2,2423.1,7.7841]
[1751043999202,14.46382712,2423.2,2423.1,6.959]
[1751044002817,13.63875712,2423.2,2422.8,43.557]
[1751044003018,4.03297,2422.9,2422.8,43.557]
[1751044003213,4.03297,2422.9,2422.8,76.385]
[1751044003618,4.03297,2422.9,2422.8,77.2102]
[1751044003917,3.2078,2422.9,2422.8,77.2102]
[1751044004118,4.03297,2422.9,2422.8,77.2102]
[1751044004611,3.2078,2422.9,2422.8,77.2102]
[1751044004818,4.03297,2422.9,2422.8,77.2072]
[1751044005118,9.02537,2422.9,2422.8,76.382]
[1751044005418,9.02537,2422.9,2422.8,76.383]
[1751044005820,9.02537,2422.9,2422.8,6.961]
[1751044006116,9.02537,2422.9,2422.8,32.827]
[1751044007019,0.82524,2422.7,2422.6,1.54655]
[1751044007317,0.82524,2422.7,2422.6,33.5453]
[1751044007514,1.53873,2422.8,2422.6,34.37055]
[1751044007818,1.53873,2422.8,2422.7,0.82524]
[1751044008018,0.82524,2422.7,2422.6,34.37056]
[1751044008219,1.53872,2422.8,2422.6,34.37056]
[1751044008421,4.6415012,2422.7,2422.6,34.37055]
[1751044008719,4.6415012,2422.7,2422.6,1.54655]
[1751044008913,4.6415012,2422.7,2422.6,8.50755]
[1751044009122,4.6415012,2422.7,2422.6,34.34455]
[1751044009318,9.6339012,2422.7,2422.6,33.5193]
[1751044009519,8.8086612,2422.7,2422.6,34.34457]
[1751044009719,9.6339012,2422.7,2422.6,34.34457]
[1751044009922,9.6339012,2422.7,2422.6,34.34157]
[1751044010115,9.6339012,2422.7,2422.6,33.5093]
[1751044010515,9.6339012,2422.7,2422.6,7.6823]
[1751044010716,9.6339012,2422.7,2422.6,33.5043]
[1751044011016,8.8086612,2422.7,2422.6,34.32957]
[1751044011823,8.8086612,2422.7,2422.6,1.54657]
[1751044012023,8.8086612,2422.7,2422.6,34.32157]
[1751044012224,9.6339012,2422.7,2422.6,33.4963]
[1751044012415,8.8086612,2422.7,2422.6,34.32157]
[1751044013125,9.6339012,2422.7,2422.6,34.32157]
[1751044013324,9.6339012,2422.7,2422.6,1.54657]
[1751044013622,8.8086612,2422.7,2422.6,0.82527]
[1751044014024,8.8086612,2422.7,2422.5,32.762]
[1751044014025,9.6339312,2422.7,2422.5,32.762]
[1751044014323,8.8086612,2422.7,2422.6,0.82527]
[1751044015123,9.6339012,2422.7,2422.6,0.82527]
[1751044015313,8.8086612,2422.7,2422.6,0.82527]
[1751044017121,8.8086612,2422.7,2422.6,2.24707]
[1751044017321,4.9924,2422.7,2422.6,2.24707]
[1751044019619,8.8086612,2422.7,2421.7,44.0078]
[1751044019824,3.8162612,2422.0,2421.9,2.19131]
[1751044020221,3.2078,2422.5,2421.9,10.1820612]
[1751044020422,4.03313,2422.5,2422.3,0.82535]
[1751044020729,7.0240612,2422.5,2422.4,26.58834]
[1751044021228,0.82543,2422.2,2422.0,0.82548]
[1751044021524,3.2078,2422.2,2422.1,33.45044]
[1751044021719,3.2078,2422.5,2422.4,0.82534]
[1751044022118,3.2078,2422.5,2422.4,33.48834]
[1751044022315,3.2078,2422.5,2422.2,0.7013]
[1751044022526,3.9175,2422.5,2422.4,33.49734]
[1751044022726,8.9099,2422.5,2422.4,33.49734]
[1751044023229,9.73521,2422.5,2422.3,0.82535]
[1751044023424,11.14783,2422.5,2422.4,32.664]
[1751044023729,11.14783,2422.5,2422.0,0.82547]
[1751044023730,0.82542,2422.2,2422.0,0.82547]
[1751044023923,0.82549,2422.0,2421.8,32.668]
[1751044024124,4.5259612,2421.9,2421.8,32.668]
[1751044024325,4.5259612,2421.9,2421.6,3.2078]
[1751044024630,0.8258,2421.1,2420.3,2.06514]
[1751044024824,5.9123612,2421.0,2420.7,2.0645]
[1751044025026,7.0240612,2420.8,2420.4,2.0645]
[1751044025225,3.2078,2420.5,2420.4,35.5085]
[1751044025528,3.2078,2420.5,2420.4,36.33452]
[1751044025924,3.2078,2420.5,2420.4,37.80602]
[1751044026319,3.2078,2420.5,2420.4,41.64591076]
[1751044026522,3.2078,2420.5,2420.4,37.82964956]
[1751044026722,3.2078,2420.5,2420.4,41.64591076]
[1751044026918,2.08389,2420.5,2420.4,41.64591076]
[1751044027120,4.9924,2420.6,2420.4,2.08812956]
[1751044027421,3.2078,2420.8,2420.7,0.82592]
[1751044027619,8.2002,2420.8,2420.7,6.7066812]
[1751044027823,8.2002,2420.8,2420.7,13.8606812]
[1751044028024,4.9924,2420.8,2420.7,13.8606812]
[1751044028232,4.9924,2420.8,2420.7,10.04442]
[1751044028433,4.9924,2420.8,2420.7,10.1025912]
[1751044029028,4.9924,2420.8,2420.7,48.75784366]
[1751044029327,3.2078,2421.4,2421.3,0.8257]
[1751044029534,3.2078,2421.4,2421.3,36.3632]
[1751044029732,3.2078,2421.7,2421.6,0.82561]
[1751044030232,3.2078,2421.7,2421.6,27.14361]
[1751044030435,3.2078,2421.7,2421.6,27.20675468]
[1751044030635,3.2078,2421.7,2421.6,29.27125468]
[1751044031129,3.9063,2422.0,2421.6,28.44564468]
[1751044031431,3.9063,2422.0,2421.8,0.06314468]
[1751044031631,4.73178,2422.0,2421.8,0.06314468]
[1751044031832,3.9063,2422.0,2421.8,0.06314468]
[1751044032029,3.9063,2422.0,2421.8,0.88868468]
[1751044032429,3.9063,2422.0,2421.9,0.06314468]
[1751044032834,3.2078,2422.0,2421.9,2.95315468]
[1751044033435,3.2078,2422.0,2421.9,29.24315468]
[1751044033637,3.2078,2422.3,2422.2,0.82538]
[1751044033829,3.2078,2422.3,2422.2,9.2205]
[1751044034029,3.2078,2422.3,2422.2,7.156]
[1751044034335,3.2078,2422.3,2422.2,7.98141]
[1751044034632,3.2078,2422.3,2422.2,8.04455468]
[1751044035631,3.2078,2422.3,2422.2,18.74139692]
[1751044035836,3.2078,2422.3,2422.2,8.06187437]
[1751044036737,4.03317,2422.3,2422.2,8.07919406]
[1751044037033,5.46607,2422.3,2422.2,8.07919406]
[1751044037435,4.6407,2422.3,2422.2,8.07919406]
[1751044037736,4.6407,2422.3,2422.2,8.09651375]
[1751044038137,3.2078,2422.3,2422.2,8.09651375]
[1751044038835,3.2078,2422.3,2422.2,8.10137843]
[1751044040433,3.2294,2422.3,2422.2,34.34237843]
[1751044041632,3.2294,2422.3,2422.2,35.80967843]
[1751044042032,3.2294,2422.3,2422.2,2.41267843]
[1751044042233,3.2294,2422.3,2422.2,34.31937843]
[1751044042627,3.2294,2422.3,2422.2,33.49396843]
[1751044042836,3.2294,2422.3,2422.2,0.94537843]
[1751044043034,4.05477,2422.3,2422.2,0.11996843]
[1751044043236,4.05477,2422.3,2421.4,5.27198]
[1751044043237,0.82549,2422.0,2421.9,7.155]
[1751044043438,8.16176246,2421.9,2421.8,33.376]
[1751044043636,10.21946246,2421.9,2421.8,7.155]
[1751044043843,0.82556,2421.8,2421.5,0.7189]
[1751044044039,10.21948246,2421.9,2421.7,2.0645]
[1751044044438,10.21948246,2421.9,2421.7,2.89008]
[1751044044738,10.21948246,2421.9,2421.8,0.01726165]
[1751044045142,2.88323,2421.9,2421.8,0.01726165]
[1751044045641,2.88323,2421.9,2421.8,0.03459343]
[1751044046539,0.7736995,2421.8,2421.7,7.155]
[1751044046941,2.2212995,2421.8,2421.7,7.155]
[1751044047142,0.82559,2421.7,2421.5,0.82565]
[1751044047342,3.2078,2421.6,2421.5,29.08415]
[1751044047644,3.2078,2421.6,2421.5,36.23915]
[1751044048344,3.2078,2421.6,2421.5,36.24015]
[1751044048743,0.0216,2422.3,2421.5,36.24015]
[1751044048937,3.26669532,2422.9,2422.2,3.2078]
[1751044048938,3.2078,2422.7,2422.2,3.2078]
[1751044049239,4.19546195,2422.5,2422.3,0.82536]
[1751044049445,0.82537,2422.3,2422.2,7.98039]
[1751044049638,2.05811195,2422.3,2422.2,7.98039]
[1751044049835,2.64654195,2422.3,2422.2,7.98039]
[1751044050440,1.4138,2422.3,2422.2,7.98039]
[1751044050645,2.23917,2422.3,2422.2,7.98039]
[1751044050839,1.4138,2422.3,2421.9,36.6328]
[1751044051040,8.00055246,2422.2,2421.9,39.5148]
[1751044051240,0.82548,2422.0,2421.9,38.6893]
[1751044051438,0.82548,2422.0,2421.9,36.6248]
[1751044051643,1.54328,2422.0,2421.9,36.6248]
[1751044051843,0.82553,2421.9,2421.7,0.82555]
[1751044052040,8.67275246,2421.9,2421.6,0.8256]
[1751044052244,0.82556,2421.8,2421.7,2.0645]
[1751044052445,2.16206,2421.8,2421.7,2.0645]
[1751044052941,4.99,2421.9,2421.8,0.82555]
[1751044053140,1.48973,2422.2,2421.8,5.2723]
[1751044053444,0.82541,2422.2,2422.1,2.88994]
[1751044053742,2.32448843,2422.2,2422.1,2.88994]
[1751044053943,0.82563,2421.6,2421.5,10.3628]
[1751044054241,2.06413,2421.5,2420.8,10.3628]
[1751044054543,0.82582,2421.0,2420.9,41.62584]
[1751044054848,0.82579,2421.1,2420.9,41.62583]
[1751044055045,0.82582,2421.0,2420.9,41.62583]
[1751044055339,0.82581,2421.1,2420.9,41.62583]
[1751044055546,0.82581,2421.1,2421.0,34.31982]
[1751044055845,0.82581,2421.1,2421.0,36.38432]
[1751044056035,0.82581,2421.1,2421.0,35.5585]
[1751044056849,0.82581,2421.1,2421.0,36.38432]
[1751044057044,0.82581,2421.1,2421.0,35.5585]
[1751044057844,0.82581,2421.1,2421.0,2.0645]
[1751044058150,0.82581,2421.1,2421.0,35.5275]
[1751044058340,5.81581,2421.1,2421.0,35.5275]
[1751044059643,4.99,2421.1,2421.0,36.35332]
[1751044059843,5.81578,2421.1,2421.0,36.35332]
[1751044060046,5.81578,2421.1,2421.0,35.5275]
[1751044060748,5.81578,2421.1,2421.0,36.35332]
[1751044060950,5.81578,2421.1,2421.0,35.5275]
[1751044061154,5.81578,2421.1,2421.0,9.2385]
[1751044061355,5.81578,2421.1,2421.0,35.4955]
[1751044062050,5.81578,2421.1,2421.0,35.4915]
[1751044062653,5.81578,2421.1,2421.0,33.427]
[1751044062854,5.81578,2421.1,2421.0,35.4915]
[1751044065658,5.81578,2421.1,2421.0,2.0645]
[1751044065857,5.81578,2421.1,2421.0,35.4425]
[1751044066156,5.81578,2421.1,2421.0,2.0645]
[1751044066961,5.81578,2421.1,2421.0,35.4315]
[1751044067758,5.81578,2421.1,2421.0,2.0645]
[1751044067962,4.99,2421.1,2421.0,36.24332]
[1751044068258,4.99,2421.1,2421.0,43.57957246]
[1751044068459,0.82572,2421.3,2421.2,0.82574]
[1751044068664,0.82572,2421.3,2421.2,26.99974]
[1751044068859,1.1531,2421.3,2421.2,29.06424]
[1751044069164,1.97882,2421.3,2421.2,29.06424]
[1751044069362,1.1531,2421.3,2421.2,29.06424]
[1751044069964,1.97882,2421.3,2421.2,29.06424]
[1751044070560,1.97882,2421.3,2421.2,28.2385]
[1751044070867,1.97882,2421.3,2421.2,2.0645]
[1751044071164,0.82578,2421.1,2421.0,33.325]
[1751044071358,0.82578,2421.1,2421.0,35.3895]
[1751044071558,0.82578,2421.1,2421.0,7.175]
[1751044071761,0.82578,2421.1,2421.0,33.326]
[1751044073271,0.82578,2421.1,2421.0,7.175]
[1751044073567,0.82578,2421.1,2421.0,33.326]
[1751044073756,4.3609,2421.3,2421.0,33.326]
[1751044073963,1.1531,2421.3,2421.2,0.82575]
[1751044074161,0.82575,2421.2,2421.1,2.0645]
[1751044074363,0.82578,2421.1,2421.0,34.15181]
[1751044074564,0.82577,2421.2,2421.1,2.89027]
[1751044074963,0.82577,2421.2,2421.1,0.82577]
[1751044075559,0.82577,2421.2,2421.1,26.118]
[1751044075767,0.82577,2421.2,2421.1,26.94378]
[1751044076069,0.82577,2421.2,2420.8,5.3227]
[1751044076070,6.42522,2421.3,2420.9,0.82583]
[1751044076370,0.82578,2421.1,2421.0,2.89029]
[1751044076570,0.82578,2421.1,2421.0,2.0645]
[1751044076868,0.82578,2421.1,2421.0,0.82582]
[1751044077265,0.82584,2421.0,2420.9,0.82583]
[1751044077469,0.82585,2420.9,2420.8,3.2078]
[1751044077661,0.82585,2420.9,2420.8,36.4818]
[1751044078273,0.82585,2420.9,2420.8,10.3838]
[1751044078567,0.82585,2420.9,2420.8,36.5018]
[1751044079170,0.82585,2420.9,2420.8,37.32769]
[1751044079372,0.82585,2420.9,2420.8,36.5018]
[1751044079771,0.82585,2420.9,2420.8,3.2078]
[1751044079971,0.82585,2420.9,2420.8,29.3368]
[1751044080273,5.81585,2420.9,2420.8,29.3368]
[1751044080464,5.81585,2420.9,2420.8,32.22719]
[1751044080671,4.99,2420.9,2420.8,36.04876817]
[1751044080873,4.99,2420.9,2420.8,37.45716817]
[1751044081672,4.87003157,2420.9,2420.8,42.45716817]
[1751044081873,4.87003157,2420.9,2420.8,43.16646817]
[1751044082571,4.87003157,2420.9,2420.8,8.21589]
[1751044082874,4.99,2420.9,2420.8,32.21817]
[1751044083574,5.81585,2420.9,2420.8,32.21817]
[1751044084176,4.99,2420.9,2420.8,32.21817]
[1751044084669,4.99,2420.9,2420.8,36.03974817]
[1751044085573,4.99,2420.9,2420.8,32.21817]
[1751044085777,5.81585,2420.9,2420.8,5.2723]
[1751044085968,5.81585,2420.9,2420.8,38.4603]
[1751044086169,4.99,2420.9,2420.8,38.4603]
[1751044086368,4.99,2420.9,2420.8,37.22169]
[1751044086666,5.81585,2420.9,2420.8,36.3918]
[1751044086866,4.99,2420.9,2420.8,39.28219]
[1751044087176,5.81585,2420.9,2420.8,39.28219]
[1751044087475,4.99,2420.9,2420.8,13.15519]
[1751044087677,4.99,2420.9,2420.8,39.28519]
[1751044090774,4.99,2420.9,2420.8,43.10676817]
[1751044091676,4.11296,2420.9,2420.8,48.79876817]
[1751044091981,3.27566149,2421.6,2421.4,0.82567]
[1751044092274,3.27566149,2421.6,2421.5,2.0645]
[1751044092475,3.27566149,2421.6,2421.2,3.2078]
[1751044092476,0.8257,2421.4,2421.2,3.2078]
[1751044092780,3.01280481,2421.3,2421.1,41.62576]
[1751044092968,2.06372481,2421.2,2421.1,40.8]
[1751044093172,2.06372481,2421.2,2421.0,33.97479]
[1751044093375,2.06375481,2421.1,2421.0,35.2135]